{"text_format":"3","workbook":"xlsx","n_sheets":1,"sheets":["Faktura"],"not_rendered":{"defined_names":6},"read":"whole","date_system":"1900"}

{"sheet":"Faktura","index":0,"n_rows":26,"n_cols":7,"rows_kept":26,"merged":[[0,1,0,2],[1,1,1,2],[1,3,1,4],[1,5,1,6],[2,1,2,2],[2,3,2,4],[2,5,2,6],[3,1,3,2],[3,3,3,4],[4,1,4,2],[4,3,4,4],[5,3,5,4],[24,1,24,4],[25,1,25,4]]}
[null,"Nazwa firmy"]
[null,"Ulica",null,"Tel.: Numer telefonu",null,"Adres e-mail"]
[null,"Kod pocztowy, miasto",null,"Faks: Numer faksu",null,"Witryna internetowa"]
[null,"Faktura dla:",null,{"$f":"\"Telefon:\"","v":"Telefon:"},null,"Nr faktury:"]
[null,"Adres:",null,{"$f":"\"Faks:    \"","v":"Faks:    "},null,"Data faktury:"]
[{"$nulls":3},{"$f":"\"Adres e-mail:\"","v":"Adres e-mail:"}]
[null,{"$f":"\"Factura para: \"","v":"Factura para: "}]
[null,"Pozycja","Opis","Ilość","Cena jednostkowa","Rabat","Cena"]
[{"$nulls":6},{"$f":"IFERROR((D9*E9)-F9,\"\")","v":0}]
[{"$nulls":6},0]
[{"$nulls":6},0]
[{"$nulls":6},0]
[{"$nulls":6},0]
[{"$nulls":6},0]
[{"$nulls":6},0]
[{"$nulls":6},0]
[{"$nulls":6},0]
[{"$nulls":6},0]
[{"$nulls":6},0]
[{"$nulls":6},0]
[{"$nulls":5},"Suma częściowa faktury",{"$f":"SUM(Prosta_faktura[Cena])","v":0}]
[{"$nulls":5},"Stawka podatkowa"]
[{"$nulls":5},"Podatek od sprzedaży",{"$f":"IFERROR(G21*G22,\"\")","v":0}]
[{"$nulls":5},"Inne"]
[null,{"$f":"\"Wszystkie przelewy należy wystawić na firmę \"&nazwa_firmy&\".\"","v":"Wszystkie przelewy należy wystawić na firmę Nazwa firmy."},{"$nulls":3},"Otrzymana wpłata"]
[null,"Całkowita należność płatna w ciągu <#> dni. W przypadku klientów z zaległościami zostanie co miesiąc naliczona dodatkowa opłata w wysokości <#>%.",{"$nulls":3},"SUMA",{"$f":"IFERROR((G21+G23+G24)-G25,\"\")","v":0}]